[Event "MČR družstev mladších žáků 2024"]
[Site "Harrachov, Czech Republic"]
[Date "2024.06.14"]
[Round "1.21"]
[White "Levchenko Alisa"]
[Black "Rawlings Benjamin"]
[Result "0-1"]
[TimeControl "25+10"]
[WhiteFideId "23760311"]
[BlackFideId "23751720"]
[WhiteElo "1302"]
[BlackElo "1236"]

1. d4 {[%clk 00:25:17]} {[%emt 00:00:02]} d5 {[%clk 00:25:16]} {[%emt
00:00:04]} 2. c4 {[%clk 00:25:22]} {[%emt 00:00:06]} e6 {[%clk 00:25:23]}
{[%emt 00:00:03]} 3. Nf3 {[%clk 00:25:10]} {[%emt 00:00:22]} Bb4+ {[%clk
00:25:22]} {[%emt 00:00:11]} 4. Bd2 {[%clk 00:24:46]} {[%emt 00:00:33]} Bxd2+
{[%clk 00:25:29]} {[%emt 00:00:03]} 5. Nbxd2 {[%clk 00:24:54]} {[%emt
00:00:02]} Nf6 {[%clk 00:25:24]} {[%emt 00:00:15]} 6. g3 {[%clk 00:24:35]}
{[%emt 00:00:30]} O-O {[%clk 00:25:16]} {[%emt 00:00:17]} 7. Bg2 {[%clk
00:24:33]} {[%emt 00:00:12]} Nc6 {[%clk 00:24:56]} {[%emt 00:00:31]} 8. O-O
{[%clk 00:24:13]} {[%emt 00:00:29]} Bd7 {[%clk 00:24:08]} {[%emt 00:00:58]} 9.
Re1 {[%clk 00:23:40]} {[%emt 00:00:43]} Ne7 {[%clk 00:22:33]} {[%emt 00:01:45]}
10. Ne5 {[%clk 00:21:57]} {[%emt 00:01:54]} Nc6 {[%clk 00:21:13]} {[%emt
00:01:30]} 11. Ndf3 {[%clk 00:20:45]} {[%emt 00:01:21]} Nxe5 {[%clk 00:20:50]}
{[%emt 00:00:33]} 12. Nxe5 {[%clk 00:20:44]} {[%emt 00:00:11]} Bc6 {[%clk
00:20:15]} {[%emt 00:00:45]} 13. b4 {[%clk 00:18:21]} {[%emt 00:02:33]} a6
{[%clk 00:18:17]} {[%emt 00:02:09]} 14. a4 {[%clk 00:17:22]} {[%emt 00:01:08]}
dxc4 {[%clk 00:17:48]} {[%emt 00:00:39]} 15. Nxc6 {[%clk 00:17:26]} {[%emt
00:00:07]} bxc6 {[%clk 00:17:57]} 16. Bxc6 {[%clk 00:17:31]} {[%emt 00:00:05]}
Rb8 {[%clk 00:17:47]} {[%emt 00:00:19]} 17. b5 {[%clk 00:17:27]} {[%emt
00:00:15]} axb5 {[%clk 00:16:51]} {[%emt 00:01:06]} 18. axb5 {[%clk 00:17:31]}
{[%emt 00:00:05]} Qd6 {[%clk 00:15:57]} {[%emt 00:01:04]} 19. e3 {[%clk
00:16:01]} {[%emt 00:01:40]} Nd5 {[%clk 00:15:24]} {[%emt 00:00:43]} 20. e4
{[%clk 00:12:03]} {[%emt 00:04:09]} Nb4 {[%clk 00:14:26]} {[%emt 00:01:07]} 21.
d5 {[%clk 00:10:30]} {[%emt 00:01:43]} Nxc6 {[%clk 00:14:20]} {[%emt 00:00:16]}
22. bxc6 {[%clk 00:10:34]} {[%emt 00:00:07]} exd5 {[%clk 00:14:26]} {[%emt
00:00:04]} 23. Qxd5 {[%clk 00:10:34]} {[%emt 00:00:10]} Qxd5 {[%clk 00:13:56]}
{[%emt 00:00:40]} 24. exd5 {[%clk 00:10:42]} {[%emt 00:00:01]} Rb5 {[%clk
00:13:30]} {[%emt 00:00:36]} 25. Red1 {[%clk 00:10:25]} {[%emt 00:00:28]} Rd8
{[%clk 00:13:35]} {[%emt 00:00:05]} 26. d6 {[%clk 00:10:19]} {[%emt 00:00:16]}
cxd6 {[%emt 00:01:27]} 27. Rxd6 {[%clk 00:10:05]} {[%emt 00:00:22]} Rf8 {[%clk
00:11:45]} {[%emt 00:00:44]} 28. c7 {[%clk 00:09:21]} {[%emt 00:00:54]} Rc5
{[%emt 00:00:24]} 29. Ra7 {[%clk 00:09:14]} c3 {[%clk 00:10:44]} {[%emt
00:01:15]} 30. Rd1 {[%clk 00:05:55]} {[%emt 00:03:28]} c2 {[%clk 00:10:45]}
{[%emt 00:00:09]} 31. Rc1 {[%clk 00:06:04]} {[%emt 00:00:01]} Rc8 {[%clk
00:10:47]} {[%emt 00:00:09]} 32. Kf1 {[%clk 00:04:30]} {[%emt 00:01:44]} R5xc7
{[%clk 00:10:53]} {[%emt 00:00:03]} 33. Rxc7 {[%clk 00:04:38]} {[%emt
00:00:02]} Rxc7 {[%clk 00:11:02]} {[%emt 00:00:02]} 34. Ke2 {[%clk 00:04:42]}
{[%emt 00:00:06]} h6 {[%clk 00:09:42]} {[%emt 00:01:29]} 35. Kd2 {[%clk
00:04:43]} {[%emt 00:00:09]} Kh7 {[%clk 00:09:49]} {[%emt 00:00:03]} 36. Rxc2
{[%clk 00:04:17]} {[%emt 00:00:37]} Rxc2+ {[%clk 00:09:57]} {[%emt 00:00:01]}
37. Kxc2 {[%clk 00:04:26]} Kg6 {[%clk 00:10:05]} {[%emt 00:00:03]} 38. Kd3
{[%clk 00:04:35]} {[%emt 00:00:02]} Kg5 {[%clk 00:09:31]} {[%emt 00:00:44]} 39.
f3 {[%clk 00:03:53]} {[%emt 00:00:51]} f5 {[%clk 00:08:40]} {[%emt 00:01:01]}
40. h4+ {[%clk 00:03:51]} {[%emt 00:00:13]} Kf6 {[%clk 00:08:34]} {[%emt
00:00:16]} 41. Ke3 {[%clk 00:03:36]} {[%emt 00:00:24]} g5 {[%clk 00:08:28]}
{[%emt 00:00:17]} 42. hxg5+ {[%clk 00:02:35]} {[%emt 00:01:11]} Kxg5 {[%clk
00:07:48]} {[%emt 00:00:50]} 43. g4 {[%clk 00:01:11]} {[%emt 00:01:34]} h5
{[%clk 00:05:38]} {[%emt 00:02:20]} 44. gxh5 {[%clk 00:01:11]} {[%emt
00:00:10]} Kxh5 {[%clk 00:05:46]} {[%emt 00:00:01]} 45. Kf4 {[%clk 00:01:19]}
{[%emt 00:00:02]} Kg6 {[%clk 00:05:55]} {[%emt 00:00:02]} 46. Ke5 {[%clk
00:01:28]} Kg5 {[%emt 00:00:03]} 47. Kd4 {[%clk 00:00:31]} {[%emt 00:01:06]}
Kf4 {[%clk 00:06:11]} {[%emt 00:00:01]} 48. Kd3 {[%clk 00:00:39]} {[%emt
00:00:02]} Kxf3 {[%clk 00:06:20]} {[%emt 00:00:02]} 49. Kd2 {[%clk 00:00:46]}
{[%emt 00:00:02]} f4 {[%clk 00:06:18]} {[%emt 00:00:13]} 50. Kd1 {[%clk
00:00:44]} {[%emt 00:00:12]} Kg2 {[%clk 00:06:23]} {[%emt 00:00:05]} 51. Ke2
{[%clk 00:00:44]} {[%emt 00:00:10]} f3+ {[%clk 00:06:31]} {[%emt 00:00:02]} 52.
Ke1 {[%clk 00:00:51]} {[%emt 00:00:02]} f2+ {[%clk 00:06:40]} {[%emt 00:00:01]}
53. Kd2 {[%clk 00:00:59]} {[%emt 00:00:02]} f1=Q {[%emt 00:00:06]} 54. Ke3
{[%clk 00:01:05]} {[%emt 00:00:01]} Qf3+ {[%clk 00:06:54]} {[%emt 00:00:03]} 55.
Kd4 {[%clk 00:01:14]} {[%emt 00:00:02]} Qe2 {[%clk 00:07:03]} {[%emt 00:00:01]}
56. Kc3 {[%clk 00:01:21]} {[%emt 00:00:03]} Qd1 {[%clk 00:07:11]} {[%emt
00:00:01]} 57. Kc4 {[%clk 00:01:28]} {[%emt 00:00:04]} Qd2 {[%clk 00:07:19]}
{[%emt 00:00:02]} 58. Kc5 {[%clk 00:01:36]} {[%emt 00:00:01]} Qd3 {[%clk
00:07:27]} {[%emt 00:00:02]} 59. Kc6 {[%clk 00:01:45]} Qd4 {[%clk 00:07:36]}
{[%emt 00:00:01]} 60. Kb5 {[%clk 00:01:54]} {[%emt 00:00:01]} Qc3 {[%clk
00:07:45]} {[%emt 00:00:02]} 61. Ka4 {[%clk 00:02:03]} Qb2 {[%clk 00:07:54]}
{[%emt 00:00:01]} 62. Ka5 {[%clk 00:02:11]} {[%emt 00:00:02]} Qb3 {[%clk
00:08:01]} {[%emt 00:00:02]} 63. Ka6 {[%clk 00:02:20]} {[%emt 00:00:02]} Qb4
{[%clk 00:08:10]} {[%emt 00:00:01]} 64. Ka7 {[%clk 00:02:28]} {[%emt 00:00:02]}
Qb5 {[%clk 00:08:18]} {[%emt 00:00:01]} 65. Ka8 {[%clk 00:02:37]} {[%emt
00:00:01]} Kf3 {[%clk 00:08:27]} {[%emt 00:00:01]} 66. Ka7 {[%clk 00:02:46]}
{[%emt 00:00:02]} Ke4 {[%clk 00:08:36]} {[%emt 00:00:01]} 67. Ka8 {[%clk
00:02:54]} {[%emt 00:00:01]} Kd5 {[%clk 00:08:45]} {[%emt 00:00:02]} 68. Ka7
{[%clk 00:03:03]} {[%emt 00:00:01]} Kc6 {[%clk 00:08:53]} 69. Ka8 {[%clk
00:03:12]} {[%emt 00:00:02]} Qb7# {[%clk 00:09:02]} 0-1



[ePGN "0.1;DGT LiveChess/2.2.6"]

[Event "MČR družstev mladších žáků 2024"]
[Site "Harrachov, Czech Republic"]
[Date "2024.06.14"]
[Round "1.25"]
[White "Kroulik Stepan"]
[Black "Fadrny Jachym"]
[Result "1-0"]
[TimeControl "25+10"]
[WhiteFideId "23725460"]
[BlackFideId "23744170"]
[WhiteElo "1370"]
[BlackElo "1537"]

1. c4 {[%clk 00:25:17]} {[%emt 00:00:01]} e6 {[%clk 00:25:13]} {[%emt
00:00:08]} 2. Nc3 {[%clk 00:25:23]} {[%emt 00:00:04]} Nf6 {[%clk 00:25:20]}
{[%emt 00:00:02]} 3. g3 {[%clk 00:25:31]} {[%emt 00:00:03]} Bb4 {[%clk
00:25:23]} {[%emt 00:00:07]} 4. Bg2 {[%clk 00:25:39]} {[%emt 00:00:02]} d5
{[%clk 00:24:46]} {[%emt 00:00:47]} 5. cxd5 {[%clk 00:25:38]} {[%emt 00:00:11]}
exd5 {[%clk 00:24:38]} {[%emt 00:00:17]} 6. a3 {[%clk 00:25:42]} {[%emt
00:00:07]} Bc5 {[%clk 00:23:41]} {[%emt 00:01:07]} 7. d4 {[%clk 00:25:39]}
{[%emt 00:00:12]} Bb6 {[%clk 00:23:46]} {[%emt 00:00:06]} 8. Bg5 {[%clk
00:25:45]} {[%emt 00:00:05]} Bf5 {[%clk 00:23:48]} {[%emt 00:00:07]} 9. Nxd5
{[%clk 00:25:24]} {[%emt 00:00:30]} Nbd7 {[%clk 00:21:53]} {[%emt 00:02:05]} 10.
Nxb6 {[%clk 00:25:07]} {[%emt 00:00:28]} Nxb6 {[%clk 00:21:48]} {[%emt
00:00:15]} 11. Bxb7 {[%clk 00:25:09]} {[%emt 00:00:08]} Rb8 {[%clk 00:21:56]}
{[%emt 00:00:02]} 12. Bc6+ {[%clk 00:25:16]} {[%emt 00:00:03]} Bd7 {[%clk
00:22:00]} {[%emt 00:00:06]} 13. Bxd7+ {[%clk 00:25:15]} {[%emt 00:00:11]}
Nbxd7 {[%clk 00:21:30]} {[%emt 00:00:39]} 14. b4 {[%clk 00:24:53]} {[%emt
00:00:32]} h6 {[%clk 00:21:38]} {[%emt 00:00:02]} 15. Bxf6 {[%clk 00:24:43]}
{[%emt 00:00:21]} Qxf6 {[%clk 00:21:28]} {[%emt 00:00:20]} 16. Nf3 {[%clk
00:24:36]} {[%emt 00:00:17]} O-O {[%clk 00:21:33]} {[%emt 00:00:05]} 17. O-O
{[%clk 00:24:36]} {[%emt 00:00:10]} Nb6 {[%clk 00:21:41]} {[%emt 00:00:02]} 18.
Qc2 {[%clk 00:24:14]} {[%emt 00:00:31]} c6 {[%clk 00:21:02]} {[%emt 00:00:49]}
19. Kg2 {[%clk 00:24:06]} {[%emt 00:00:19]} Nd5 {[%clk 00:20:59]} {[%emt
00:00:13]} 20. e4 {[%clk 00:23:59]} {[%emt 00:00:16]} Nb6 {[%clk 00:20:35]}
{[%emt 00:00:34]} 21. Rac1 {[%clk 00:23:46]} {[%emt 00:00:23]} Rbc8 {[%clk
00:20:32]} {[%emt 00:00:14]} 22. Ne5 {[%clk 00:23:15]} {[%emt 00:00:40]} Rfe8
{[%clk 00:19:23]} {[%emt 00:01:19]} 23. Nxc6 {[%clk 00:22:47]} {[%emt
00:00:39]} Qd6 {[%clk 00:19:03]} {[%emt 00:00:28]} 24. d5 {[%clk 00:22:18]}
{[%emt 00:00:41]} f5 {[%clk 00:17:30]} {[%emt 00:01:42]} 25. f3 {[%clk
00:21:42]} {[%emt 00:00:47]} Kh8 {[%clk 00:16:08]} {[%emt 00:01:32]} 26. Qc5
{[%clk 00:20:29]} {[%emt 00:01:22]} Qd7 {[%clk 00:15:10]} {[%emt 00:01:08]} 27.
b5 {[%clk 00:18:14]} {[%emt 00:02:26]} fxe4 {[%clk 00:12:29]} {[%emt 00:02:51]}
28. fxe4 {[%clk 00:18:16]} {[%emt 00:00:07]} Qg4 {[%clk 00:11:54]} {[%emt
00:00:45]} 29. Rf4 {[%clk 00:17:35]} {[%emt 00:00:52]} Qe2+ {[%clk 00:11:55]}
{[%emt 00:00:07]} 30. Kh3 {[%clk 00:15:49]} {[%emt 00:01:58]} Qh5+ {[%clk
00:08:27]} {[%emt 00:03:37]} 31. Rh4 {[%clk 00:15:49]} {[%emt 00:00:11]} Qf7
{[%clk 00:08:15]} {[%emt 00:00:21]} 32. Qd4 {[%clk 00:15:27]} {[%emt 00:00:31]}
Kh7 {[%clk 00:08:13]} {[%emt 00:00:13]} 33. Re1 {[%clk 00:14:35]} {[%emt
00:01:03]} Qd7+ {[%clk 00:07:38]} {[%emt 00:00:44]} 34. Kg2 {[%clk 00:14:11]}
{[%emt 00:00:36]} Nxd5 {[%clk 00:06:56]} {[%emt 00:00:51]} 35. Rf1 {[%clk
00:13:34]} {[%emt 00:00:47]} Rxc6 {[%clk 00:05:51]} {[%emt 00:01:15]} 36. Qxd5
{[%emt 00:00:36]} Rd6 {[%clk 00:05:53]} 37. Qf5+ {[%clk 00:13:14]} {[%emt
00:00:11]} Qxf5 {[%clk 00:05:49]} {[%emt 00:00:14]} 38. exf5 {[%clk 00:13:01]}
{[%emt 00:00:23]} Re2+ {[%clk 00:05:33]} {[%emt 00:00:26]} 39. Rf2 {[%clk
00:13:01]} {[%emt 00:00:10]} Re3 {[%clk 00:05:28]} {[%emt 00:00:11]} 40. Ra4
{[%clk 00:13:03]} {[%emt 00:00:11]} Rd5 {[%clk 00:05:17]} {[%emt 00:00:21]} 41.
Rxa7 {[%clk 00:13:02]} {[%emt 00:00:11]} Rxb5 {[%clk 00:05:25]} {[%emt
00:00:02]} 42. f6 {[%clk 00:13:11]} Re8 {[%clk 00:05:19]} {[%emt 00:00:17]} 43.
Rxg7+ {[%emt 00:00:29]} Kh8 {[%emt 00:00:01]} 44. Re7 {[%clk 00:12:40]} {[%emt
00:00:10]} Rf8 {[%clk 00:05:21]} {[%emt 00:00:09]} 45. f7 {[%clk 00:12:34]}
{[%emt 00:00:16]} Rbb8 {[%clk 00:05:29]} 46. Rf6 {[%clk 00:12:39]} {[%emt
00:00:05]} Kg7 {[%clk 00:05:38]} {[%emt 00:00:02]} 47. Rf4 {[%clk 00:12:44]}
{[%emt 00:00:05]} Rb2+ {[%clk 00:05:44]} {[%emt 00:00:04]} 48. Kh3 {[%clk
00:12:53]} {[%emt 00:00:01]} Rb5 {[%clk 00:05:32]} {[%emt 00:00:21]} 49. Rg4+
{[%clk 00:12:34]} {[%emt 00:00:31]} Kf6 {[%clk 00:05:21]} {[%emt 00:00:20]} 50.
Ra7 {[%clk 00:12:31]} {[%emt 00:00:13]} Rh5+ {[%clk 00:04:53]} {[%emt
00:00:37]} 51. Kg2 {[%clk 00:12:35]} {[%emt 00:00:06]} Rc8 {[%clk 00:04:54]}
{[%emt 00:00:09]} 52. Rf4+ {[%clk 00:12:40]} {[%emt 00:00:06]} Rf5 {[%clk
00:04:56]} {[%emt 00:00:08]} 53. Ra6+ {[%clk 00:12:33]} {[%emt 00:00:17]} Kg5
{[%clk 00:05:02]} {[%emt 00:00:04]} 54. h4+ {[%clk 00:12:34]} {[%emt 00:00:09]}
Kh5 {[%clk 00:04:57]} {[%emt 00:00:15]} 55. Rxf5+ {[%clk 00:12:43]} {[%emt
00:00:01]} Kg4 {[%clk 00:05:04]} {[%emt 00:00:03]} 56. Rf4+ {[%clk 00:12:52]}
{[%emt 00:00:01]} Kh5 {[%clk 00:05:12]} {[%emt 00:00:02]} 57. Ra5+ {[%clk
00:12:37]} {[%emt 00:00:25]} Kg6 {[%clk 00:05:18]} {[%emt 00:00:04]} 58. h5+
{[%clk 00:12:45]} {[%emt 00:00:02]} Kg7 {[%clk 00:05:25]} {[%emt 00:00:03]} 59.
Re5 {[%clk 00:12:46]} {[%emt 00:00:09]} Rf8 {[%clk 00:05:32]} {[%emt 00:00:03]}
60. Re8 {[%clk 00:12:47]} {[%emt 00:00:09]} Rxf7 {[%clk 00:05:41]} {[%emt
00:00:01]} 61. Rxf7+ {[%clk 00:12:56]} Kxf7 {[%clk 00:05:49]} {[%emt 00:00:03]}
62. Rh8 {[%clk 00:13:04]} {[%emt 00:00:02]} Kg7 {[%clk 00:05:58]} 63. Rxh6
{[%clk 00:13:12]} {[%emt 00:00:01]} Kxh6 {[%clk 00:06:06]} {[%emt 00:00:03]} 64.
a4 {[%clk 00:13:21]} {[%emt 00:00:01]} Kxh5 {[%clk 00:06:06]} {[%emt 00:00:10]}
65. a5 {[%clk 00:13:31]} {[%emt 00:00:01]} Kg6 {[%clk 00:06:08]} {[%emt
00:00:08]} 66. a6 {[%clk 00:13:40]} Kf7 {[%clk 00:06:16]} {[%emt 00:00:01]} 67.
a7 {[%clk 00:13:49]} {[%emt 00:00:01]} Ke7 {[%clk 00:06:24]} {[%emt 00:00:03]}
68. a8=Q {[%clk 00:13:57]} {[%emt 00:00:02]} 1-0



[ePGN "0.1;DGT LiveChess/2.2.6"]

[Event "MČR družstev mladších žáků 2024"]
[Site "Harrachov, Czech Republic"]
[Date "2024.06.14"]
[Round "1.26"]
[White "Trejbal Jindrich"]
[Black "Zika Miroslav"]
[Result "1-0"]
[TimeControl "25+10"]
[WhiteFideId "23743948"]
[BlackFideId "23746610"]
[WhiteElo "1401"]
[BlackElo "1311"]

1. e4 {[%clk 00:25:10]} {[%emt 00:10:08]} c5 {[%clk 00:25:10]} {[%emt
00:00:04]} 2. c4 {[%clk 00:25:10]} {[%emt 00:00:04]} Nc6 {[%clk 00:25:10]}
{[%emt 00:00:05]} 3. Nc3 {[%clk 00:25:10]} {[%emt 00:00:01]} Nf6 {[%clk
00:25:10]} {[%emt 00:00:06]} 4. d3 {[%clk 00:25:10]} {[%emt 00:00:05]} d6
{[%clk 00:25:10]} {[%emt 00:00:03]} 5. f4 {[%clk 00:25:10]} {[%emt 00:00:17]}
g6 {[%clk 00:25:10]} {[%emt 00:00:12]} 6. Nf3 {[%emt 00:01:08]} Bg7 {[%emt
00:00:09]} 7. h3 {[%emt 00:01:23]} Bd7 {[%emt 00:00:19]} 8. Be3 {[%emt
00:00:42]} a6 {[%emt 00:00:12]} 9. Be2 {[%emt 00:00:22]} Qc7 {[%emt 00:00:17]}
10. O-O {[%emt 00:00:37]} O-O {[%emt 00:00:41]} 11. Nd5 {[%emt 00:00:30]} Qd8
{[%emt 00:00:41]} 12. Qe1 {[%emt 00:01:26]} e6 {[%emt 00:00:41]} 13. Nc3 {[%emt
00:01:06]} Re8 {[%emt 00:00:36]} 14. e5 {[%emt 00:00:37]} dxe5 {[%emt
00:00:50]} 15. fxe5 {[%emt 00:00:02]} Nh5 {[%emt 00:00:26]} 16. g4 {[%emt
00:00:45]} Nxe5 {[%emt 00:00:15]} 17. gxh5 {[%emt 00:00:26]} Nxf3+ {[%emt
00:00:08]} 18. Bxf3 {[%emt 00:00:30]} e5 {[%emt 00:01:02]} 19. h6 {[%emt
00:00:29]} Bf8 {[%emt 00:00:12]} 20. Bd5 {[%emt 00:00:35]} Be6 {[%emt
00:01:14]} 21. Qf2 {[%emt 00:01:38]} Qc7 {[%emt 00:01:16]} 22. Bxe6 {[%emt
00:01:00]} Rxe6 {[%emt 00:00:17]} 23. Nd5 {[%emt 00:00:10]} Qd7 {[%emt
00:00:24]} 24. Nf6+ {[%emt 00:00:11]} Rxf6 {[%emt 00:00:17]} 25. Qxf6 {[%emt
00:00:04]} Rc8 {[%emt 00:01:04]} 26. Rad1 {[%emt 00:01:23]} Rc6 {[%emt
00:00:08]} 27. Qf3 {[%emt 00:00:33]} Rb6 {[%emt 00:02:13]} 28. Qxf7+ {[%emt
00:01:18]} Qxf7 {[%emt 00:00:54]} 29. Rxf7 {[%emt 00:00:01]} Kxf7 {[%emt
00:00:09]} 30. Rf1+ Rf6 {[%emt 00:00:03]} 31. Rxf6+ {[%emt 00:00:08]} Kxf6
{[%emt 00:00:05]} 32. h4 {[%emt 00:00:20]} Kf5 {[%emt 00:00:20]} 33. Bg5 {[%emt
00:00:46]} e4 {[%emt 00:00:18]} 34. dxe4+ {[%emt 00:01:04]} Kxe4 {[%emt
00:00:09]} 35. Kf2 {[%emt 00:00:03]} Bd6 {[%emt 00:00:19]} 36. Ke2 {[%emt
00:00:32]} Kd4 {[%emt 00:00:29]} 37. b3 {[%emt 00:00:27]} Be5 {[%emt 00:01:45]}
38. Be3+ {[%emt 00:02:26]} Kc3 {[%emt 00:00:09]} 39. Bxc5 {[%emt 00:00:26]} Kb2
{[%emt 00:00:02]} 40. Kd3 {[%emt 00:00:46]} Kxa2 {[%emt 00:00:09]} 41. Kc2
{[%emt 00:00:01]} Bf6 {[%emt 00:00:31]} 42. Bf2 {[%emt 00:00:35]} Be7 {[%emt
00:00:35]} 43. Be1 {[%emt 00:01:23]} b5 {[%emt 00:00:32]} 44. Bf2 {[%emt
00:01:58]} bxc4 {[%emt 00:00:12]} 45. bxc4 Ka3 {[%emt 00:00:12]} 46. c5 {[%emt
00:00:30]} Bd8 {[%emt 00:02:08]} 47. Bg3 {[%emt 00:00:39]} Kb4 {[%emt
00:00:38]} 48. c6 Kb5 {[%emt 00:00:01]} 49. c7 {[%emt 00:00:01]} Bxc7 {[%emt
00:00:04]} 50. Bxc7 Kc6 {[%emt 00:00:03]} 51. Bd8 {[%emt 00:00:09]} Kd7 {[%emt
00:00:02]} 52. Bg5 {[%emt 00:00:13]} a5 {[%emt 00:00:09]} 53. Kb3 {[%emt
00:00:02]} Kc6 {[%emt 00:00:05]} 54. Ka4 {[%emt 00:00:02]} Kd5 {[%emt
00:00:11]} 55. Kxa5 {[%emt 00:00:02]} Ke6 {[%emt 00:00:01]} 56. Kb6 {[%emt
00:00:02]} Kd6 {[%emt 00:00:04]} 57. Bd2 {[%emt 00:00:16]} Kd7 {[%emt
00:00:05]} 58. Kc5 {[%emt 00:00:02]} Kc7 {[%emt 00:00:02]} 59. Kd5 {[%emt
00:00:01]} Kd7 {[%emt 00:00:01]} 60. Bg5 {[%emt 00:00:03]} Ke8 {[%emt
00:00:03]} 61. Ke6 {[%emt 00:00:04]} Kf8 {[%emt 00:00:08]} 62. Kf6 {[%emt
00:00:22]} Kg8 {[%emt 00:00:19]} 63. Ke7 {[%emt 00:00:09]} Kh8 {[%emt
00:00:12]} 64. Be3 {[%emt 00:00:05]} Kg8 {[%emt 00:00:06]} 65. Bd2 {[%emt
00:00:01]} g5 {[%emt 00:00:21]} 66. hxg5 {[%emt 00:00:05]} Kh8 {[%emt
00:00:14]} 67. Kf6 {[%emt 00:00:07]} Kg8 {[%emt 00:00:11]} 68. g6 {[%emt
00:00:04]} Kh8 {[%emt 00:01:34]} 69. gxh7 {[%emt 00:00:04]} Kxh7 {[%emt
00:00:04]} 70. Kg5 {[%emt 00:00:01]} Kh8 {[%emt 00:00:08]} 71. Kg6 {[%emt
00:00:02]} Kg8 {[%emt 00:00:04]} 72. h7+ Kf8 {[%emt 00:00:02]} 73. h8=Q+ {[%emt
00:00:05]} Ke7 {[%emt 00:00:03]} 74. Qf6+ {[%emt 00:00:02]} Kd7 {[%emt
00:00:03]} 75. Bf4 {[%emt 00:00:05]} Kc8 {[%emt 00:00:14]} 76. Qc6+ {[%emt
00:00:07]} Kd8 {[%emt 00:00:41]} 77. Bg5# {[%emt 00:00:04]} 1-0



[ePGN "0.1;DGT LiveChess/2.2.6"]

[Event "MČR družstev mladších žáků 2024"]
[Site "Harrachov, Czech Republic"]
[Date "2024.06.14"]
[Round "1.27"]
[White "Svoboda Petr"]
[Black "Bartak Tobias"]
[Result "0-1"]
[TimeControl "25+10"]
[WhiteFideId "23771550"]
[BlackFideId "23753544"]
[WhiteElo "1261"]
[BlackElo "1260"]

1. e4 {[%clk 00:25:16]} {[%emt 00:00:02]} e5 {[%clk 00:25:14]} {[%emt
00:00:06]} 2. Nf3 {[%clk 00:25:23]} {[%emt 00:00:04]} Nf6 {[%clk 00:25:20]}
{[%emt 00:00:04]} 3. d4 {[%clk 00:25:30]} {[%emt 00:00:02]} Nxe4 {[%clk
00:25:18]} {[%emt 00:00:13]} 4. dxe5 {[%clk 00:25:01]} {[%emt 00:00:39]} d5
{[%clk 00:23:15]} {[%emt 00:02:13]} 5. exd6 {[%clk 00:24:56]} {[%emt 00:00:16]}
Nxd6 {[%clk 00:23:13]} {[%emt 00:00:12]} 6. Bd3 {[%clk 00:24:49]} {[%emt
00:00:15]} Be7 {[%clk 00:22:56]} {[%emt 00:00:28]} 7. O-O {[%clk 00:24:56]}
{[%emt 00:00:02]} O-O {[%clk 00:23:01]} {[%emt 00:00:06]} 8. Nc3 {[%clk
00:24:58]} {[%emt 00:00:07]} Nc6 {[%clk 00:22:17]} {[%emt 00:00:56]} 9. Bf4
{[%clk 00:24:36]} {[%emt 00:00:31]} Bg4 {[%clk 00:22:04]} {[%emt 00:00:23]} 10.
h3 {[%clk 00:24:31]} {[%emt 00:00:15]} Bf5 {[%clk 00:20:23]} {[%emt 00:01:50]}
11. Bxd6 {[%clk 00:23:29]} {[%emt 00:01:12]} Bxd3 {[%clk 00:20:31]} {[%emt
00:00:02]} 12. Qxd3 {[%clk 00:22:18]} {[%emt 00:01:21]} Bxd6 {[%clk 00:20:26]}
{[%emt 00:00:15]} 13. Rfe1 {[%clk 00:21:57]} {[%emt 00:00:32]} Re8 {[%clk
00:19:14]} {[%emt 00:01:22]} 14. Rxe8+ {[%clk 00:21:26]} {[%emt 00:00:41]} Qxe8
{[%clk 00:19:03]} {[%emt 00:00:21]} 15. Re1 {[%clk 00:21:20]} {[%emt 00:00:15]}
Qd7 {[%clk 00:18:34]} {[%emt 00:00:39]} 16. Qb5 {[%clk 00:17:27]} {[%emt
00:04:04]} h6 {[%clk 00:14:42]} {[%emt 00:04:02]} 17. Nd4 {[%clk 00:12:42]}
{[%emt 00:04:55]} Re8 {[%clk 00:08:03]} {[%emt 00:06:48]} 18. Rxe8+ {[%clk
00:12:16]} {[%emt 00:00:37]} Qxe8 {[%clk 00:08:08]} {[%emt 00:00:06]} 19. Nxc6
{[%clk 00:11:42]} {[%emt 00:00:44]} Qe1+ {[%clk 00:07:31]} {[%emt 00:00:46]}
0-1



[ePGN "0.1;DGT LiveChess/2.2.6"]

[Event "MČR družstev mladších žáků 2024"]
[Site "Harrachov, Czech Republic"]
[Date "2024.06.14"]
[Round "1.28"]
[White "Vratny Vojtech"]
[Black "Dvorak Vojtech"]
[Result "1-0"]
[TimeControl "25+10"]
[WhiteFideId "23753692"]
[BlackFideId "23742089"]
[WhiteElo "1208"]
[BlackElo "1154"]

1. Nf3 {[%clk 00:25:18]} {[%emt 00:00:01]} Nc6 {[%clk 00:24:52]} {[%emt
00:00:29]} 2. d4 {[%clk 00:25:24]} {[%emt 00:00:03]} d5 {[%clk 00:24:58]}
{[%emt 00:00:04]} 3. g3 {[%clk 00:25:10]} {[%emt 00:00:25]} Nf6 {[%clk
00:24:56]} {[%emt 00:00:12]} 4. Bg2 {[%clk 00:25:15]} {[%emt 00:00:05]} Bf5
{[%clk 00:24:46]} {[%emt 00:00:20]} 5. O-O {[%clk 00:25:11]} {[%emt 00:00:13]}
e6 {[%clk 00:23:50]} {[%emt 00:01:06]} 6. Bg5 {[%clk 00:25:09]} {[%emt
00:00:12]} Be7 {[%clk 00:23:35]} {[%emt 00:00:25]} 7. c3 {[%clk 00:24:52]}
{[%emt 00:00:27]} h6 {[%clk 00:22:09]} {[%emt 00:01:47]} 8. Bxf6 {[%clk
00:25:06]} {[%emt 00:00:05]} Bxf6 {[%clk 00:22:16]} {[%emt 00:00:04]} 9. Nbd2
{[%clk 00:25:07]} {[%emt 00:00:07]} Qd7 {[%clk 00:22:19]} {[%emt 00:00:09]} 10.
b4 {[%clk 00:24:29]} {[%emt 00:00:47]} g5 {[%clk 00:19:28]} {[%emt 00:03:02]}
11. Ne1 {[%clk 00:23:23]} {[%emt 00:01:14]} h5 {[%clk 00:18:29]} {[%emt
00:01:11]} 12. e4 {[%clk 00:23:22]} {[%emt 00:00:10]} dxe4 {[%clk 00:18:30]}
{[%emt 00:00:08]} 13. Nxe4 {[%clk 00:23:23]} {[%emt 00:00:10]} Bxe4 {[%clk
00:16:58]} {[%emt 00:01:41]} 14. Bxe4 {[%clk 00:23:25]} {[%emt 00:00:08]} h4
{[%clk 00:16:43]} {[%emt 00:00:27]} 15. b5 {[%clk 00:21:39]} {[%emt 00:01:55]}
Na5 {[%clk 00:16:09]} {[%emt 00:00:44]} 16. Qa4 {[%clk 00:21:05]} {[%emt
00:00:44]} hxg3 {[%clk 00:12:44]} {[%emt 00:03:36]} 17. fxg3 {[%clk 00:20:00]}
{[%emt 00:01:14]} e5 {[%clk 00:09:46]} {[%emt 00:03:08]} 18. Rxf6 {[%clk
00:18:30]} {[%emt 00:01:40]} Qh3 {[%clk 00:08:19]} {[%emt 00:01:38]} 19. Rf2
{[%clk 00:17:33]} {[%emt 00:01:03]} f6 {[%clk 00:06:21]} {[%emt 00:02:12]} 20.
Qxa5 {[%clk 00:16:56]} {[%emt 00:00:46]} Rd8 {[%clk 00:04:19]} {[%emt
00:02:13]} 21. Qxc7 {[%clk 00:16:16]} {[%emt 00:00:47]} exd4 {[%clk 00:04:04]}
{[%emt 00:00:27]} 1-0



[ePGN "0.1;DGT LiveChess/2.2.6"]